[Event "*** SCC Grand Prix: Titled Tuesday Blitz"]
[Site "Chess.com"]
[Date "2020.07.07"]
[Round "2"]
[White "Thipsay"]
[Black "Raja3401"]
[Result "0-1"]
[WhiteElo "2520"]
[BlackElo "2787"]
[TimeControl "180+1"]
[EndTime "10:18:51 PDT"]
[Termination "Raja3401 won by resignation"]

1. e4 {[%clk 0:03:00.9]} 1... c5 {[%clk 0:02:52.6]} 2. Nf3 {[%clk 0:03:00.8]}
2... d6 {[%clk 0:02:52.7]} 3. d4 {[%clk 0:03:01]} 3... cxd4 {[%clk 0:02:53.6]}
4. Nxd4 {[%clk 0:03:01.1]} 4... Nf6 {[%clk 0:02:54.3]} 5. Nc3 {[%clk 0:03:01.2]}
5... a6 {[%clk 0:02:54.8]} 6. Be2 {[%clk 0:03:00.7]} 6... e5 {[%clk 0:02:54.7]}
7. Nb3 {[%clk 0:03:00.8]} 7... Be7 {[%clk 0:02:55.6]} 8. O-O {[%clk 0:03:00.4]}
8... O-O {[%clk 0:02:49.9]} 9. Kh1 {[%clk 0:03:00.3]} 9... Be6 {[%clk
0:02:49.9]} 10. f4 {[%clk 0:02:58.8]} 10... exf4 {[%clk 0:02:50.8]} 11. Nd4
{[%clk 0:02:57.7]} 11... Nc6 {[%clk 0:02:51.7]} 12. Nf5 {[%clk 0:02:57.4]} 12...
d5 {[%clk 0:02:43.3]} 13. Nxe7+ {[%clk 0:02:56.4]} 13... Nxe7 {[%clk 0:02:42.1]}
14. e5 {[%clk 0:02:49.4]} 14... Ne4 {[%clk 0:02:40.4]} 15. Nxe4 {[%clk
0:02:42.4]} 15... dxe4 {[%clk 0:02:40.5]} 16. Bxf4 {[%clk 0:02:42.3]} 16... Nd5
{[%clk 0:02:40.6]} 17. Qc1 {[%clk 0:02:39.2]} 17... Rc8 {[%clk 0:02:36.2]} 18.
c3 {[%clk 0:02:36.4]} 18... Qb6 {[%clk 0:02:31.3]} 19. Bg3 {[%clk 0:02:26]}
19... Rfd8 {[%clk 0:02:20.5]} 20. Rb1 {[%clk 0:02:11]} 20... h6 {[%clk
0:02:07.7]} 21. Bf2 {[%clk 0:02:05.1]} 21... Qc7 {[%clk 0:02:00]} 22. Bd4 {[%clk
0:02:02.7]} 22... Nb4 {[%clk 0:01:57.1]} 23. Qe3 {[%clk 0:01:50.4]} 23... Nc2
{[%clk 0:01:44.4]} 24. Qxe4 {[%clk 0:01:48.3]} 24... Nxd4 {[%clk 0:01:45.1]} 25.
cxd4 {[%clk 0:01:47.8]} 25... Bd5 {[%clk 0:01:42.9]} 26. Qf5 {[%clk 0:01:41.4]}
26... Qc2 {[%clk 0:01:34]} 27. Qxc2 {[%clk 0:01:19.3]} 27... Rxc2 {[%clk
0:01:34.9]} 28. Bf3 {[%clk 0:01:17.6]} 28... Bxf3 {[%clk 0:01:32.1]} 29. Rxf3
{[%clk 0:01:14.5]} 29... Rxd4 {[%clk 0:01:32.8]} 30. h3 {[%clk 0:01:14.8]} 30...
Rdd2 {[%clk 0:01:28.8]} 31. Rg3 {[%clk 0:00:52.4]} 31... Rxb2 {[%clk 0:01:26.9]}
32. Rc1 {[%clk 0:00:43.5]} 32... Rbc2 {[%clk 0:01:26.6]} 33. Rb1 {[%clk
0:00:42.3]} 33... b5 {[%clk 0:01:26.5]} 34. a4 {[%clk 0:00:36.6]} 34... Rc5
{[%clk 0:00:59.7]} 35. axb5 {[%clk 0:00:35]} 35... axb5 {[%clk 0:00:59.5]} 36.
Re1 {[%clk 0:00:28.7]} 36... Rd7 {[%clk 0:00:45.3]} 37. e6 {[%clk 0:00:26]}
37... fxe6 {[%clk 0:00:45.3]} 38. Rxe6 {[%clk 0:00:25.4]} 38... Rb7 {[%clk
0:00:46]} 39. Rb3 {[%clk 0:00:22.9]} 39... Kf7 {[%clk 0:00:44.1]} 40. Re4 {[%clk
0:00:20.3]} 40... Kf6 {[%clk 0:00:44.2]} 41. Kh2 {[%clk 0:00:20.3]} 41... Re5
{[%clk 0:00:42.5]} 42. Reb4 {[%clk 0:00:19.8]} 42... Ke6 {[%clk 0:00:42.6]} 43.
Rd3 {[%clk 0:00:19]} 43... Rd5 {[%clk 0:00:42]} 44. Rc3 {[%clk 0:00:18]} 44...
Kd6 {[%clk 0:00:41.3]} 45. h4 {[%clk 0:00:16.3]} 45... Rc5 {[%clk 0:00:40.5]}
46. Rd3+ {[%clk 0:00:16.1]} 46... Kc6 {[%clk 0:00:40.7]} 47. Rdb3 {[%clk
0:00:16.3]} 47... Rc4 {[%clk 0:00:37.1]} 48. h5 {[%clk 0:00:13]} 48... Rxb4
{[%clk 0:00:34.9]} 49. Rxb4 {[%clk 0:00:12.7]} 49... Kc5 {[%clk 0:00:35.7]} 50.
Rb1 {[%clk 0:00:11.6]} 50... b4 {[%clk 0:00:36.1]} 51. Kg3 {[%clk 0:00:11.9]}
51... Kc4 {[%clk 0:00:36.3]} 52. Kf4 {[%clk 0:00:12.4]} 52... b3 {[%clk
0:00:36.8]} 53. Kf5 {[%clk 0:00:11.1]} 53... Kc3 {[%clk 0:00:37.2]} 0-1

[Event "*** SCC Grand Prix: Titled Tuesday Blitz"]
[Site "Chess.com"]
[Date "2020.07.07"]
[Round "2"]
[White "GianmarcoVaR"]
[Black "A-Fier"]
[Result "1-0"]
[WhiteElo "2535"]
[BlackElo "2764"]
[TimeControl "180+1"]
[EndTime "10:18:51 PDT"]
[Termination "GianmarcoVaR won by resignation"]

1. d4 {[%clk 0:03:00.9]} 1... Nf6 {[%clk 0:02:59.9]} 2. c3 {[%clk 0:03:00.4]}
2... c5 {[%clk 0:03:00.5]} 3. Nf3 {[%clk 0:02:58.2]} 3... g6 {[%clk 0:02:59.7]}
4. dxc5 {[%clk 0:02:52.9]} 4... Bg7 {[%clk 0:02:59.8]} 5. Nbd2 {[%clk 0:02:52]}
5... O-O {[%clk 0:03:00]} 6. Nb3 {[%clk 0:02:50.6]} 6... Qc7 {[%clk 0:02:59.3]}
7. g3 {[%clk 0:02:49.9]} 7... Na6 {[%clk 0:02:54.5]} 8. Bf4 {[%clk 0:02:49.9]}
8... Qc6 {[%clk 0:02:46.5]} 9. Bg2 {[%clk 0:02:46.3]} 9... Nxc5 {[%clk
0:02:43.2]} 10. O-O {[%clk 0:02:43.1]} 10... Qb6 {[%clk 0:02:39.1]} 11. Nxc5
{[%clk 0:02:37.6]} 11... Qxc5 {[%clk 0:02:38.7]} 12. Be5 {[%clk 0:02:35.4]}
12... d6 {[%clk 0:02:37.9]} 13. Bd4 {[%clk 0:02:35.8]} 13... Qc7 {[%clk
0:02:38.4]} 14. h3 {[%clk 0:02:17.3]} 14... h6 {[%clk 0:02:36.5]} 15. a4 {[%clk
0:02:14.9]} 15... e5 {[%clk 0:02:36.6]} 16. Be3 {[%clk 0:02:14.6]} 16... Be6
{[%clk 0:02:37.2]} 17. a5 {[%clk 0:02:09.5]} 17... d5 {[%clk 0:02:36.9]} 18. Qa4
{[%clk 0:02:09.2]} 18... Ne4 {[%clk 0:02:28.1]} 19. Nd2 {[%clk 0:02:02.3]} 19...
Nxd2 {[%clk 0:02:18.7]} 20. Bxd2 {[%clk 0:02:01.2]} 20... f5 {[%clk 0:02:17.5]}
21. a6 {[%clk 0:01:55.7]} 21... b6 {[%clk 0:02:15.6]} 22. c4 {[%clk 0:01:56]}
22... dxc4 {[%clk 0:01:53.7]} 23. Bb4 {[%clk 0:01:51]} 23... e4 {[%clk
0:01:46.4]} 24. Bxf8 {[%clk 0:01:50.2]} 24... Rxf8 {[%clk 0:01:47.3]} 25. Qb4
{[%clk 0:01:34.2]} 25... Qe5 {[%clk 0:01:45]} 26. Rab1 {[%clk 0:01:32.9]} 26...
Rd8 {[%clk 0:01:43.8]} 27. Rfd1 {[%clk 0:01:31.2]} 27... Rc8 {[%clk 0:01:26.4]}
28. e3 {[%clk 0:01:31.4]} 28... h5 {[%clk 0:01:25.6]} 29. Qe7 {[%clk 0:01:30.6]}
29... Rc7 {[%clk 0:01:23.3]} 30. Qd6 {[%clk 0:01:28.6]} 30... Kf7 {[%clk
0:01:19.2]} 31. Qd8 {[%clk 0:01:24.6]} 31... Bf6 {[%clk 0:01:15.7]} 32. Qb8
{[%clk 0:01:18.2]} 32... Re7 {[%clk 0:01:14.4]} 33. Qxe5 {[%clk 0:00:53.9]}
33... Bxe5 {[%clk 0:01:14]} 34. Rd8 {[%clk 0:00:54.1]} 34... Rc7 {[%clk
0:01:01.3]} 35. Bf1 {[%clk 0:00:41.4]} 35... Ke7 {[%clk 0:01:01.6]} 36. Rb8
{[%clk 0:00:41.4]} 36... Bd5 {[%clk 0:00:52.3]} 37. h4 {[%clk 0:00:30.5]} 37...
Rd7 {[%clk 0:00:49.5]} 38. Rc8 {[%clk 0:00:30.2]} 38... b5 {[%clk 0:00:49.3]}
39. Rc5 {[%clk 0:00:21.1]} 39... Ke6 {[%clk 0:00:26.1]} 40. Rxb5 {[%clk
0:00:20.4]} 40... Rd6 {[%clk 0:00:26.7]} 41. Rc5 {[%clk 0:00:19.7]} 41... Rxa6
{[%clk 0:00:21.9]} 42. Rd1 {[%clk 0:00:20.1]} 42... Rd6 {[%clk 0:00:19.9]} 43.
Rdxd5 {[%clk 0:00:19.9]} 43... Rxd5 {[%clk 0:00:14.9]} 44. Bxc4 {[%clk 0:00:20]}
44... Bxb2 {[%clk 0:00:14.8]} 45. Rxd5 {[%clk 0:00:20.3]} 45... Kf6 {[%clk
0:00:15.3]} 46. Ra5 {[%clk 0:00:20.5]} 46... Kg7 {[%clk 0:00:11.9]} 47. Rxa7+
{[%clk 0:00:20.7]} 47... Kh6 {[%clk 0:00:12.6]} 48. Bg8 {[%clk 0:00:19.4]} 48...
Bg7 {[%clk 0:00:11.9]} 49. Kf1 {[%clk 0:00:19.2]} 1-0

[Event "*** SCC Grand Prix: Titled Tuesday Blitz"]
[Site "Chess.com"]
[Date "2020.07.07"]
[Round "2"]
[White "Rish_97"]
[Black "Sueetin"]
[Result "1-0"]
[WhiteElo "2644"]
[BlackElo "2313"]
[TimeControl "180+1"]
[EndTime "10:18:51 PDT"]
[Termination "Rish_97 won on time"]

1. d4 {[%clk 0:03:00.9]} 1... Nf6 {[%clk 0:02:59.5]} 2. Nf3 {[%clk 0:02:59.8]}
2... d5 {[%clk 0:02:59.1]} 3. Bf4 {[%clk 0:02:59.1]} 3... c5 {[%clk 0:02:57.9]}
4. e3 {[%clk 0:02:57.1]} 4... Nc6 {[%clk 0:02:57.2]} 5. Nbd2 {[%clk 0:02:56.5]}
5... cxd4 {[%clk 0:02:53.8]} 6. exd4 {[%clk 0:02:57.4]} 6... Qb6 {[%clk
0:02:51.2]} 7. Nb3 {[%clk 0:02:51]} 7... Bg4 {[%clk 0:02:48.2]} 8. Be2 {[%clk
0:02:51.2]} 8... e6 {[%clk 0:02:47.2]} 9. O-O {[%clk 0:02:51.5]} 9... Be7 {[%clk
0:02:45.1]} 10. a4 {[%clk 0:02:52.1]} 10... a5 {[%clk 0:02:29.2]} 11. h3 {[%clk
0:02:27.5]} 11... Bf5 {[%clk 0:02:21.2]} 12. Ne5 {[%clk 0:02:19]} 12... Rc8
{[%clk 0:01:42.4]} 13. Bb5 {[%clk 0:02:11.7]} 13... h6 {[%clk 0:01:26.5]} 14. c4
{[%clk 0:01:23.5]} 14... dxc4 {[%clk 0:01:19]} 15. Nxc4 {[%clk 0:01:22.1]} 15...
Qd8 {[%clk 0:01:16.9]} 16. Nbxa5 {[%clk 0:01:21.3]} 16... O-O {[%clk 0:01:13.9]}
17. Nxb7 {[%clk 0:01:21]} 17... Qxd4 {[%clk 0:01:07.1]} 18. Be3 {[%clk
0:01:16.8]} 18... Qh4 {[%clk 0:01:00.6]} 19. Nbd6 {[%clk 0:01:08.3]} 19... Rc7
{[%clk 0:00:30.3]} 20. Bb6 {[%clk 0:00:59.1]} 20... Bxh3 {[%clk 0:00:18.1]} 21.
Bxc7 {[%clk 0:00:51.6]} 21... Bxg2 {[%clk 0:00:15.4]} 22. Kxg2 {[%clk
0:00:43.4]} 22... Qg5+ {[%clk 0:00:15]} 23. Kh3 {[%clk 0:00:23.8]} 23... Nh5
{[%clk 0:00:11.4]} 24. Ne4 {[%clk 0:00:12.4]} 24... Qh4+ {[%clk 0:00:10.9]} 25.
Kg2 {[%clk 0:00:11.3]} 25... Nf4+ {[%clk 0:00:09.8]} 26. Bxf4 {[%clk 0:00:11.4]}
26... Qxf4 {[%clk 0:00:08.6]} 27. Bxc6 {[%clk 0:00:12.1]} 27... f5 {[%clk
0:00:06.6]} 28. Ng3 {[%clk 0:00:11.8]} 28... Qg5 {[%clk 0:00:04.3]} 29. Qe2
{[%clk 0:00:10.7]} 29... f4 {[%clk 0:00:04.7]} 30. Qxe6+ {[%clk 0:00:10.7]}
30... Kh8 {[%clk 0:00:05.4]} 31. Qd5 {[%clk 0:00:11.1]} 31... Qg4 {[%clk
0:00:04.6]} 32. Qf3 {[%clk 0:00:11]} 32... Qh4 {[%clk 0:00:03.6]} 33. Qh5 {[%clk
0:00:10.7]} 33... Qf6 {[%clk 0:00:03.1]} 34. Ne4 {[%clk 0:00:09.8]} 34... Qxc6
{[%clk 0:00:03.1]} 35. Qf3 {[%clk 0:00:07.4]} 35... Qxc4 {[%clk 0:00:02.9]} 36.
Rac1 {[%clk 0:00:07.8]} 36... Qe6 {[%clk 0:00:02.9]} 37. Rg1 {[%clk 0:00:08.2]}
37... Bb4 {[%clk 0:00:01.3]} 38. Kf1 {[%clk 0:00:08.3]} 38... Re8 {[%clk
0:00:01.7]} 39. Nc3 {[%clk 0:00:07.2]} 39... Qa6+ {[%clk 0:00:01.9]} 40. Kg2
{[%clk 0:00:06.5]} 1-0

[Event "*** SCC Grand Prix: Titled Tuesday Blitz"]
[Site "Chess.com"]
[Date "2020.07.07"]
[Round "2"]
[White "Elshan1985"]
[Black "antoszu"]
[Result "1-0"]
[WhiteElo "2829"]
[BlackElo "2541"]
[TimeControl "180+1"]
[EndTime "10:18:52 PDT"]
[Termination "Elshan1985 won by resignation"]

1. e4 {[%clk 0:03:00.9]} 1... e6 {[%clk 0:02:59]} 2. d4 {[%clk 0:03:00.3]} 2...
d5 {[%clk 0:02:59.2]} 3. e5 {[%clk 0:03:00.1]} 3... c5 {[%clk 0:02:59.2]} 4. c3
{[%clk 0:03:00.6]} 4... Nc6 {[%clk 0:02:58.9]} 5. Nf3 {[%clk 0:03:00.9]} 5...
Qb6 {[%clk 0:02:59]} 6. Be2 {[%clk 0:02:50.5]} 6... Nh6 {[%clk 0:02:50.1]} 7.
Bxh6 {[%clk 0:02:45.8]} 7... gxh6 {[%clk 0:02:38.3]} 8. b3 {[%clk 0:01:54.8]}
8... cxd4 {[%clk 0:02:28.7]} 9. cxd4 {[%clk 0:01:55.7]} 9... Bb4+ {[%clk
0:02:28.4]} 10. Kf1 {[%clk 0:01:54.9]} 10... Bf8 {[%clk 0:02:15.5]} 11. Nc3
{[%clk 0:01:53.4]} 11... Bg7 {[%clk 0:02:15]} 12. Na4 {[%clk 0:01:53.4]} 12...
Qd8 {[%clk 0:02:12.7]} 13. Rc1 {[%clk 0:01:40.9]} 13... O-O {[%clk 0:02:11.9]}
14. g3 {[%clk 0:01:37.3]} 14... f6 {[%clk 0:02:04.3]} 15. exf6 {[%clk
0:01:37.5]} 15... Qxf6 {[%clk 0:02:05.2]} 16. Kg2 {[%clk 0:01:37.7]} 16... Nxd4
{[%clk 0:01:36.5]} 17. Qxd4 {[%clk 0:01:37.4]} 17... Qxd4 {[%clk 0:01:37.4]} 18.
Nxd4 {[%clk 0:01:37.8]} 18... Bxd4 {[%clk 0:01:38.3]} 19. f4 {[%clk 0:01:36.2]}
19... b6 {[%clk 0:01:34.8]} 20. Rhd1 {[%clk 0:01:33.7]} 20... Bf6 {[%clk
0:01:30.3]} 21. Bg4 {[%clk 0:01:33.2]} 21... Re8 {[%clk 0:01:23.3]} 22. Rc7
{[%clk 0:01:25.3]} 22... Bd8 {[%clk 0:01:03.4]} 23. Rc6 {[%clk 0:01:18.8]} 23...
h5 {[%clk 0:00:33.2]} 24. Bxh5 {[%clk 0:01:12.1]} 24... Re7 {[%clk 0:00:33.5]}
25. Bg4 {[%clk 0:01:09.2]} 25... Bd7 {[%clk 0:00:27.9]} 26. Rc2 {[%clk
0:01:07.7]} 26... Kf7 {[%clk 0:00:26.7]} 27. Nb2 {[%clk 0:01:01.4]} 27... Rc8
{[%clk 0:00:25.4]} 28. Rxc8 {[%clk 0:01:01.8]} 28... Bxc8 {[%clk 0:00:26.3]} 29.
Nd3 {[%clk 0:01:02]} 29... Rc7 {[%clk 0:00:19.5]} 30. Rd2 {[%clk 0:00:58.2]}
30... Ke7 {[%clk 0:00:18.4]} 31. Re2 {[%clk 0:00:56.5]} 31... Kd6 {[%clk
0:00:17.6]} 32. Ne5 {[%clk 0:00:53]} 32... Bf6 {[%clk 0:00:17]} 33. h4 {[%clk
0:00:52.6]} 33... Ba6 {[%clk 0:00:14.7]} 34. Re1 {[%clk 0:00:47.6]} 34... Rc2+
{[%clk 0:00:13.8]} 35. Kh3 {[%clk 0:00:47.5]} 35... Bc8 {[%clk 0:00:14.1]} 36.
a4 {[%clk 0:00:45.2]} 36... Rb2 {[%clk 0:00:14]} 37. Re3 {[%clk 0:00:43.6]}
37... Rc2 {[%clk 0:00:13.6]} 38. Nf7+ {[%clk 0:00:38.9]} 38... Ke7 {[%clk
0:00:13.3]} 39. Ng5 {[%clk 0:00:38]} 39... Bxg5 {[%clk 0:00:07.4]} 40. hxg5
{[%clk 0:00:33.9]} 40... Kd6 {[%clk 0:00:08.3]} 41. b4 {[%clk 0:00:22.9]} 41...
Rc4 {[%clk 0:00:07]} 42. Kh4 {[%clk 0:00:21.4]} 42... Rxb4 {[%clk 0:00:07.2]}
43. Kh5 {[%clk 0:00:21.7]} 43... d4 {[%clk 0:00:07.2]} 44. Re1 {[%clk
0:00:21.4]} 44... d3 {[%clk 0:00:07.2]} 45. Kh6 {[%clk 0:00:20.2]} 45... d2
{[%clk 0:00:06.8]} 46. Rd1 {[%clk 0:00:20.5]} 46... Rd4 {[%clk 0:00:07.2]} 47.
Kxh7 {[%clk 0:00:20.7]} 47... Bb7 {[%clk 0:00:05]} 48. g6 {[%clk 0:00:19.5]}
48... Be4 {[%clk 0:00:05.1]} 49. Kh6 {[%clk 0:00:19.6]} 49... Bc2 {[%clk
0:00:05]} 50. g7 {[%clk 0:00:19.9]} 50... Bxd1 {[%clk 0:00:05.2]} 51. Bxd1
{[%clk 0:00:18.8]} 1-0

[Event "*** SCC Grand Prix: Titled Tuesday Blitz"]
[Site "Chess.com"]
[Date "2020.07.07"]
[Round "2"]
[White "Sanan_Sjugirov"]
[Black "Haykoooo0o"]
[Result "1-0"]
[WhiteElo "2814"]
[BlackElo "2534"]
[TimeControl "180+1"]
[EndTime "10:18:52 PDT"]
[Termination "Sanan_Sjugirov won by resignation"]

1. d4 {[%clk 0:03:00.9]} 1... Nf6 {[%clk 0:02:55.9]} 2. c4 {[%clk 0:03:00.3]}
2... c5 {[%clk 0:02:54.7]} 3. d5 {[%clk 0:02:59.7]} 3... b5 {[%clk 0:02:54.5]}
4. cxb5 {[%clk 0:02:59.6]} 4... a6 {[%clk 0:02:54.6]} 5. e3 {[%clk 0:02:59.4]}
5... g6 {[%clk 0:02:53.2]} 6. Nc3 {[%clk 0:02:58.6]} 6... Bg7 {[%clk 0:02:52.2]}
7. Nf3 {[%clk 0:02:56.7]} 7... O-O {[%clk 0:02:50.9]} 8. a4 {[%clk 0:02:23.2]}
8... e6 {[%clk 0:02:26.8]} 9. dxe6 {[%clk 0:02:10.7]} 9... fxe6 {[%clk
0:02:25.7]} 10. Be2 {[%clk 0:02:10.3]} 10... d5 {[%clk 0:02:23.3]} 11. O-O
{[%clk 0:02:10.2]} 11... Bb7 {[%clk 0:02:17.6]} 12. h3 {[%clk 0:02:05.4]} 12...
axb5 {[%clk 0:02:11.6]} 13. Bxb5 {[%clk 0:02:03.6]} 13... Qe7 {[%clk 0:01:58.9]}
14. Ne5 {[%clk 0:01:57.4]} 14... Ne4 {[%clk 0:01:42.6]} 15. Nxe4 {[%clk
0:01:51]} 15... Bxe5 {[%clk 0:01:42.7]} 16. Nd2 {[%clk 0:01:47.4]} 16... Nc6
{[%clk 0:01:34.1]} 17. f4 {[%clk 0:01:33.9]} 17... Bg7 {[%clk 0:01:28.9]} 18.
Nf3 {[%clk 0:01:33.7]} 18... Rad8 {[%clk 0:01:26.7]} 19. a5 {[%clk 0:01:28.6]}
19... e5 {[%clk 0:01:21.4]} 20. a6 {[%clk 0:01:19.7]} 20... Ba8 {[%clk
0:01:21.2]} 21. Bxc6 {[%clk 0:01:16.6]} 21... Bxc6 {[%clk 0:01:20.6]} 22. Nxe5
{[%clk 0:01:17.1]} 22... Bxe5 {[%clk 0:01:20.8]} 23. fxe5 {[%clk 0:01:18]} 23...
Qxe5 {[%clk 0:01:19.1]} 24. a7 {[%clk 0:01:05.8]} 24... Qe4 {[%clk 0:00:31.1]}
25. Rxf8+ {[%clk 0:00:56.7]} 25... Rxf8 {[%clk 0:00:32]} 26. Qg4 {[%clk
0:00:54.9]} 26... Qe5 {[%clk 0:00:13.6]} 27. Ra6 {[%clk 0:00:28.3]} 27... Ba8
{[%clk 0:00:11.8]} 28. Qe6+ {[%clk 0:00:18.8]} 28... Qxe6 {[%clk 0:00:08]} 29.
Rxe6 {[%clk 0:00:19.7]} 29... Rf7 {[%clk 0:00:04.7]} 30. Re8+ {[%clk 0:00:18.8]}
30... Rf8 {[%clk 0:00:05.3]} 31. Rb8 {[%clk 0:00:18.8]} 31... Kf7 {[%clk
0:00:04.8]} 32. Bd2 {[%clk 0:00:18.1]} 32... Ke7 {[%clk 0:00:04]} 33. Ba5 {[%clk
0:00:16.5]} 33... Re8 {[%clk 0:00:04.2]} 34. Bb6 {[%clk 0:00:15.6]} 34... Kd7
{[%clk 0:00:04.6]} 35. Bxc5 {[%clk 0:00:15]} 35... Rc8 {[%clk 0:00:05.1]} 36.
Bd4 {[%clk 0:00:13.9]} 36... Kc7 {[%clk 0:00:04.9]} 37. Kf2 {[%clk 0:00:13.5]}
37... Kd7 {[%clk 0:00:03.4]} 38. Kg3 {[%clk 0:00:13]} 38... Bc6 {[%clk 0:00:04]}
39. Kf4 {[%clk 0:00:11.7]} 39... Re8 {[%clk 0:00:04]} 40. Kg5 {[%clk 0:00:11.2]}
40... Ke7 {[%clk 0:00:02.1]} 41. g4 {[%clk 0:00:10.7]} 41... Rf8 {[%clk
0:00:02.1]} 42. Bc5+ {[%clk 0:00:10.4]} 1-0

[Event "*** SCC Grand Prix: Titled Tuesday Blitz"]
[Site "Chess.com"]
[Date "2020.07.07"]
[Round "2"]
[White "Kezin_Roman"]
[Black "Shuvalov"]
[Result "0-1"]
[WhiteElo "2740"]
[BlackElo "2522"]
[TimeControl "180+1"]
[EndTime "10:18:52 PDT"]
[Termination "Shuvalov won by resignation"]

1. d4 {[%clk 0:03:00.9]} 1... d5 {[%clk 0:02:59.1]} 2. c4 {[%clk 0:02:57.6]}
2... c6 {[%clk 0:02:58.3]} 3. Nc3 {[%clk 0:02:55]} 3... Nf6 {[%clk 0:02:57.8]}
4. e3 {[%clk 0:02:49.7]} 4... a6 {[%clk 0:02:54.9]} 5. Qc2 {[%clk 0:02:46.1]}
5... Bg4 {[%clk 0:02:50.5]} 6. Nf3 {[%clk 0:02:32.9]} 6... e6 {[%clk 0:02:42.6]}
7. Bd3 {[%clk 0:02:14.6]} 7... Nbd7 {[%clk 0:02:34.7]} 8. Ne5 {[%clk 0:02:12.4]}
8... Nxe5 {[%clk 0:02:23.7]} 9. dxe5 {[%clk 0:02:13.3]} 9... Nd7 {[%clk
0:02:20.9]} 10. f4 {[%clk 0:02:04.5]} 10... Nc5 {[%clk 0:02:01.4]} 11. O-O
{[%clk 0:01:55.2]} 11... Nxd3 {[%clk 0:01:50.2]} 12. Qxd3 {[%clk 0:01:56.1]}
12... Bc5 {[%clk 0:01:50]} 13. cxd5 {[%clk 0:01:50.2]} 13... cxd5 {[%clk
0:01:47.3]} 14. Bd2 {[%clk 0:01:46.5]} 14... O-O {[%clk 0:01:44.4]} 15. Rac1
{[%clk 0:01:37.5]} 15... Rc8 {[%clk 0:01:39.8]} 16. Ne2 {[%clk 0:01:33.5]} 16...
Bxe2 {[%clk 0:01:18.5]} 17. Qxe2 {[%clk 0:01:34.4]} 17... Qb6 {[%clk 0:01:16.7]}
18. b3 {[%clk 0:01:30.8]} 18... Ba3 {[%clk 0:01:09.3]} 19. Rcd1 {[%clk
0:01:17.7]} 19... Rc2 {[%clk 0:01:07.1]} 20. f5 {[%clk 0:01:04]} 20... exf5
{[%clk 0:01:02.9]} 21. Rxf5 {[%clk 0:01:04.9]} 21... Qg6 {[%clk 0:00:57.9]} 22.
Qf3 {[%clk 0:00:50.3]} 22... Bc5 {[%clk 0:00:44.2]} 23. Kh1 {[%clk 0:00:40.3]}
23... h6 {[%clk 0:00:30.5]} 24. Be1 {[%clk 0:00:27]} 24... Bxe3 {[%clk
0:00:19.2]} 25. Bg3 {[%clk 0:00:26]} 25... d4 {[%clk 0:00:17.9]} 26. Rf1 {[%clk
0:00:24.4]} 26... Rc1 {[%clk 0:00:15.2]} 27. Rxc1 {[%clk 0:00:11.9]} 27... Bxc1
{[%clk 0:00:16.1]} 28. h3 {[%clk 0:00:12.8]} 28... Be3 {[%clk 0:00:16.2]} 29.
Kh2 {[%clk 0:00:12]} 29... Rc8 {[%clk 0:00:15.7]} 30. h4 {[%clk 0:00:04.4]}
30... Rc1 {[%clk 0:00:15.4]} 31. h5 {[%clk 0:00:04.7]} 31... Qe6 {[%clk
0:00:15.1]} 32. Bf2 {[%clk 0:00:05.2]} 32... Rf1 {[%clk 0:00:13.6]} 33. Qe4
{[%clk 0:00:02]} 33... Rxf2 {[%clk 0:00:13.1]} 34. Rxf2 {[%clk 0:00:02.3]} 34...
Bxf2 {[%clk 0:00:14]} 35. g3 {[%clk 0:00:02.4]} 35... Be3 {[%clk 0:00:13.1]} 36.
Qxb7 {[%clk 0:00:01.9]} 36... Qxe5 {[%clk 0:00:11.2]} 37. Qc8+ {[%clk
0:00:02.4]} 37... Kh7 {[%clk 0:00:11.2]} 38. Qc2+ {[%clk 0:00:03.3]} 38... g6
{[%clk 0:00:10.7]} 39. hxg6+ {[%clk 0:00:03.2]} 39... fxg6 {[%clk 0:00:11.6]}
40. Qc6 {[%clk 0:00:03.6]} 40... Qg7 {[%clk 0:00:12.5]} 41. Qe6 {[%clk
0:00:03.3]} 41... h5 {[%clk 0:00:13.4]} 42. Qd5 {[%clk 0:00:03.5]} 42... Kh6
{[%clk 0:00:13.7]} 43. Qe6 {[%clk 0:00:03.3]} 43... Qc7 {[%clk 0:00:13.4]} 44.
Qb6 {[%clk 0:00:02.7]} 44... Qxb6 {[%clk 0:00:13.2]} 0-1

[Event "*** SCC Grand Prix: Titled Tuesday Blitz"]
[Site "Chess.com"]
[Date "2020.07.07"]
[Round "2"]
[White "temus_galaktionov"]
[Black "Atanejhad"]
[Result "1-0"]
[WhiteElo "2657"]
[BlackElo "2389"]
[TimeControl "180+1"]
[EndTime "10:18:52 PDT"]
[Termination "temus_galaktionov won on time"]

1. d4 {[%clk 0:03:00.9]} 1... Nf6 {[%clk 0:02:59.7]} 2. Nf3 {[%clk 0:03:00.5]}
2... e6 {[%clk 0:02:59.3]} 3. c4 {[%clk 0:03:01.1]} 3... b6 {[%clk 0:02:58.8]}
4. g3 {[%clk 0:03:00.8]} 4... Ba6 {[%clk 0:02:58.8]} 5. b3 {[%clk 0:03:00.6]}
5... b5 {[%clk 0:02:57.8]} 6. c5 {[%clk 0:02:58.6]} 6... d6 {[%clk 0:02:48.2]}
7. cxd6 {[%clk 0:02:58]} 7... cxd6 {[%clk 0:02:45.5]} 8. Bg2 {[%clk 0:02:57.1]}
8... Bb7 {[%clk 0:02:45.6]} 9. O-O {[%clk 0:02:56.8]} 9... Nbd7 {[%clk
0:02:44.6]} 10. Bf4 {[%clk 0:02:55.7]} 10... Be7 {[%clk 0:02:42.5]} 11. a4
{[%clk 0:02:51.4]} 11... a6 {[%clk 0:02:31.4]} 12. axb5 {[%clk 0:02:46.8]} 12...
axb5 {[%clk 0:02:32.3]} 13. Rxa8 {[%clk 0:02:47]} 13... Qxa8 {[%clk 0:02:32.8]}
14. Nc3 {[%clk 0:02:47.9]} 14... b4 {[%clk 0:02:08.7]} 15. Nb5 {[%clk
0:02:41.6]} 15... Qb8 {[%clk 0:02:03.2]} 16. Qa1 {[%clk 0:01:47.4]} 16... Bxf3
{[%clk 0:01:53]} 17. Bxf3 {[%clk 0:01:44.4]} 17... Qxb5 {[%clk 0:01:52.5]} 18.
Qa8+ {[%clk 0:01:43.8]} 18... Qb8 {[%clk 0:01:51.4]} 19. Ra1 {[%clk 0:01:36.2]}
19... O-O {[%clk 0:01:47.1]} 20. Qa6 {[%clk 0:01:34.5]} 20... d5 {[%clk
0:01:38.1]} 21. Bxb8 {[%clk 0:01:31.1]} 21... Rxb8 {[%clk 0:01:15.7]} 22. Qc6
{[%clk 0:01:22.9]} 22... g6 {[%clk 0:00:52.7]} 23. Ra8 {[%clk 0:01:12.1]} 23...
Rxa8 {[%clk 0:00:52.9]} 24. Qxa8+ {[%clk 0:01:13]} 24... Kg7 {[%clk 0:00:53.7]}
25. Qb7 {[%clk 0:01:12]} 25... Bf8 {[%clk 0:00:49.2]} 26. e4 {[%clk 0:01:08.6]}
26... dxe4 {[%clk 0:00:50.1]} 27. Bxe4 {[%clk 0:01:09.1]} 27... Nxe4 {[%clk
0:00:50.4]} 28. Qxe4 {[%clk 0:01:09.6]} 28... Nb6 {[%clk 0:00:30.1]} 29. Qe5+
{[%clk 0:01:07.7]} 29... Kg8 {[%clk 0:00:29.2]} 30. Kf1 {[%clk 0:01:03.2]} 30...
Nd5 {[%clk 0:00:29]} 31. Ke2 {[%clk 0:01:02.7]} 31... Bg7 {[%clk 0:00:26.4]} 32.
Qb8+ {[%clk 0:01:02.1]} 32... Bf8 {[%clk 0:00:26.6]} 33. Kd3 {[%clk 0:01:02.4]}
33... h5 {[%clk 0:00:25.8]} 34. h3 {[%clk 0:01:00.2]} 34... Kg7 {[%clk
0:00:25.7]} 35. g4 {[%clk 0:00:59.8]} 35... hxg4 {[%clk 0:00:23.7]} 36. hxg4
{[%clk 0:01:00.7]} 36... g5 {[%clk 0:00:20.4]} 37. Qe5+ {[%clk 0:00:56.7]} 37...
Kg6 {[%clk 0:00:20.7]} 38. Qh8 {[%clk 0:00:49.5]} 38... Bg7 {[%clk 0:00:20.7]}
39. Qh5+ {[%clk 0:00:47.7]} 39... Kf6 {[%clk 0:00:20.6]} 40. Kc4 {[%clk
0:00:46.6]} 40... Bf8 {[%clk 0:00:20.2]} 41. Kb5 {[%clk 0:00:42.1]} 41... Bg7
{[%clk 0:00:20.1]} 42. Kc6 {[%clk 0:00:40.6]} 42... Nf4 {[%clk 0:00:20.2]} 43.
Qh7 {[%clk 0:00:38.2]} 43... Nd5 {[%clk 0:00:18.6]} 44. Kd7 {[%clk 0:00:36.7]}
44... Nb6+ {[%clk 0:00:18.7]} 45. Ke8 {[%clk 0:00:36.3]} 45... Nc8 {[%clk
0:00:17.8]} 46. Qh2 {[%clk 0:00:25.1]} 46... Kg6 {[%clk 0:00:07]} 47. Qh5+
{[%clk 0:00:23.5]} 1-0